Cogmind - Beta 13 @@@ ROGUE MODE // 2024.03.12 @ 17:55:52 Player: ldi (hl). (hl) Result: Destroyed by YU-N2I(g) with Beamcaster Performance ------------- Evolutions (1) 500 Regions Visited (5) 1000 Robots Destroyed (51) 255 Value Destroyed (2355) 2355 Prototype IDs (0) 0 Alien Tech Used (0) 0 Bonus (406) 406 TOTAL SCORE: 4516 Bonus ------- High Alert Combat Kills 206 Entered Garrisons 200 Cogmind --------- Core Integrity 0/400 Matter 300/300 Energy 80/100 System Corruption 5% Temperature Cool (9) Movement Treading (160) Location -9/Garrison Parts ------- > --- POWER (1) -------- (None) > --- PROPULSION (3) --- Light Treads Light Treads Light Treads > --- UTILITY (3) ------ Large Storage Unit Advanced Targeting Computer Advanced Targeting Computer > --- WEAPON (2) ------- Axe > --- INVENTORY (15) --- Ion Engine Light Treads Heat Sink Large Storage Unit Targeting Computer Light Armor Plating Light Armor Plating Light Armor Plating Medium Armor Plating Hacking Suite Beam Rifle Beam Cannon Peak State ------------ > --- POWER ------------ Improved Ion Engine > --- PROPULSION ------- Light Treads Light Treads Improved Treads > --- UTILITY ---------- Large Storage Unit Advanced Targeting Computer Advanced Targeting Computer > --- WEAPON ----------- Axe Axe > --- INVENTORY -------- Ion Engine Light Treads Light Treads Light Treads Heat Sink Large Storage Unit Targeting Computer Propulsion Shielding Utility Shielding Light Armor Plating Hacking Suite Beam Rifle Beamcaster Beam Cannon Grenade Launcher [Rating: 21] Favorites ----------- Power Ion Engine Engine Ion Engine Propulsion Light Treads Treads Light Treads Leg Aluminum Leg Utility Advanced Targeting Computer Storage Large Storage Unit Processor Advanced Targeting Computer Weapon Axe Energy Gun Medium Laser Energy Cannon Beam Cannon Ballistic Gun Light Assault Rifle Launcher Grenade Launcher Slashing Weapon Axe Build | -11 -10 -10 -9 -9 -9 ------- Run | Yrd Mat Min Mat Sto Gar Slots Evolved 2 | . . . 2 . . Power . | . . . . . . Propulsion 1 | . . . 1 . . Utility 1 | . . . 1 . . Weapon . | . . . . . . Parts Attached 44 | 6 1 8 7 10 12 Power 4 | 1 . . 1 1 1 Engine 4 | 1 . . 1 1 1 Core . | . . . . . . Reactor . | . . . . . . Propulsion 17 | 2 . 2 2 5 6 Treads 15 | . . 2 2 5 6 Leg 2 | 2 . . . . . Wheel . | . . . . . . Hover . | . . . . . . Flight . | . . . . . . Utility 5 | 1 1 1 2 . . Device . | . . . . . . Storage 2 | 1 1 . . . . Processor 3 | . . 1 2 . . Hackware . | . . . . . . Protection . | . . . . . . Artifact . | . . . . . . Weapon 18 | 2 . 5 2 4 5 Energy Gun 6 | 1 . 1 . 2 2 Energy Cannon 1 | . . . . . 1 Ballistic Gun 3 | 1 . 2 . . . Ballistic Cannon . | . . . . . . Launcher 3 | . . 2 . . 1 Special Weapon . | . . . . . . Impact Weapon . | . . . . . . Slashing Weapon 5 | . . . 2 2 1 Piercing Weapon . | . . . . . . Special Melee Weapon . | . . . . . . Unidentified Prototypes . | . . . . . . Parts Lost 8 | . . . . . 8 Power 1 | . . . . . 1 Propulsion 4 | . . . . . 4 Utility . | . . . . . . Weapon 3 | . . . . . 3 Highest Loss Streak 4 | . . . . . 4 To Critical Strikes . | . . . . . . Average Slot Usage (%) 93 | . 85 90 94 100 94 Engine 11 | . 14 14 11 11 10 Treads 26 | . . 21 29 33 32 Leg 4 | . 28 6 . . . Storage 11 | . 14 14 11 11 11 Processor 17 | . . 9 20 22 22 Energy Gun 4 | . 14 3 . . 4 Ballistic Gun 4 | . 14 17 3 . . Slashing Weapon 11 | . . . 18 21 11 Naked Turns . | . . . . . . Heaviest Build 33 | 13 28 30 33 33 33 Greatest Support 63 | 20 20 40 60 63 63 Greatest Overweight (x) 1 | . 1 1 . . 1 Average Overweight (x) . | . . . . . . Largest Inventory Capacity 15 | 8 15 15 15 15 15 Average Capacity 14 | 6 13 15 15 15 15 Most Carried 15 | 1 8 13 14 15 15 Average Carried 11 | . 3 10 12 14 14 Final Capacity 15 | 8 15 15 15 15 15 Final Carried 15 | 1 8 12 13 15 12 Class Distribution -------------------- 69% | Mutant 30% | Scavenger-Mutant Dominant Class ---------------- Mutant | -10/Materials Mutant | -10/Mines Scavenger-Mutant | -9/Materials Mutant | -9/Storage Mutant | -9/Garrison Resources | -11 -10 -10 -9 -9 -9 ----------- Run | Yrd Mat Min Mat Sto Gar Matter Collected 774 | 213 64 130 82 100 185 Remotely . | . . . . . . Salvage Created 1878 | . 65 46 498 345 924 Parts 117 | . 7 8 28 23 51 Haulers Intercepted 3 | . 1 . 2 . . Recyclers Shooed 1 | . . . 1 . . Parts Field Recycled . | . . . . . . Retrieved Matter . | . . . . . . Parts Self-Destructed . | . . . . . . Prevented . | . . . . . . Kills | -11 -10 -10 -9 -9 -9 ------- Run | Yrd Mat Min Mat Sto Gar Combat Hostiles Destroyed 39 | . . 4 4 7 24 Melee 24 | . . . 4 6 14 Guns 5 | . . . . 1 4 AOE 10 | . . 4 . . 6 Classes Destroyed 11 | . 2 2 6 . 1 Worker 3 | . . . 2 1 . Builder 2 | . 1 1 . . . Hauler 3 | . 1 . 2 . . Recycler 1 | . . . 1 . . Operator 1 | . . . 1 . . Watcher 2 | . . . 2 . . Swarmer 12 | . . 3 . . 9 Grunt 13 | . . 1 1 3 8 Brawler 2 | . . . 1 . 1 Sentry 11 | . . . 2 4 5 Programmer 1 | . . . . . 1 Best Kill Streak 6 | . 2 5 3 5 6 Combat Bots Only 6 | . . 4 1 5 6 Max Kills in Single Turn 2 | . 1 2 1 1 2 Gunslinging 1 | . . . . . 1 Exploded 2 | . . 2 . . 2 Melee 1 | . . . 1 1 1 Uniques/NPCs Destroyed . | . . . . . . Combat | -11 -10 -10 -9 -9 -9 -------- Run | Yrd Mat Min Mat Sto Gar Hostile Shots Fired 216 | . . 10 27 43 136 Missed 49 | . . 3 7 11 28 Damage Taken 2198 | . . 92 276 427 1403 Core 411 | . . 11 38 94 268 Absorbed by Shields . | . . . . . . Core Remaining (%) 97 | 100 . 95 . . . Volleys Fired 30 | . 7 5 2 1 15 Largest 2 | . 2 1 2 2 2 Hottest 131 | . 70 30 43 131 131 Shots Fired 43 | . 14 5 4 2 18 Gun 31 | . 14 . 4 2 11 Cannon . | . . . . . . Launcher 12 | . . 5 . . 7 Special . | . . . . . . Kinetic 11 | . 7 . 4 . . Thermal 20 | . 7 . . 2 11 Explosive 12 | . . 5 . . 7 Electromagnetic . | . . . . . . Robot Hit Streak 10 | . 5 3 2 4 10 Robot Miss Streak 3 | . 3 1 2 . 1 Penetration Max . | . . . . . . Secondary Targets 2 | . . . . 1 1 Max Gunslinging Chain 1 | . . . . 1 1 Shots Hit Robots 113 | . 8 3 25 21 56 Core Hits 67 | . 5 7 11 8 36 Critical Kills . | . . . . . . Critical Parts Destroyed . | . . . . . . Critical Strikes 12 | . . . 1 2 9 Burn 2 | . . . . 1 1 Sever 10 | . . . 1 1 8 Melee Attacks 150 | . . . 29 26 95 Impact . | . . . . . . Slashing 150 | . . . 29 26 95 Piercing . | . . . . . . Sneak Attacks 10 | . . . 6 4 . Combat Hostiles 1 | . . . . 1 . Follow-up Attacks 4 | . . . 1 3 . Damage Inflicted 4790 | . 80 369 1033 773 2535 Guns 215 | . 80 . 28 36 71 Cannons . | . . . . . . Explosions 972 | . . 369 . . 603 Melee 3598 | . . . 1005 737 1856 Ramming 5 | . . . . . 5 Kinetic 71 | . 43 . 28 . . Thermal 144 | . 37 . . 36 71 Explosive 972 | . . 369 . . 603 Electromagnetic . | . . . . . . Impact . | . . . . . . Slashing 3598 | . . . 1005 737 1856 Piercing . | . . . . . . Highest Corruption 5 | . . . . . 5 Average Corruption 2 | . . . . . 2 Corruption Purged . | . . . . . . Corruption Blocked . | . . . . . . Overload Shots . | . . . . . . Overflow Damage 158 | . . . 116 31 11 Projectiles . | . . . . . . Explosions 11 | . . . . . 11 Melee 147 | . . . 116 31 . Knockbacks . | . . . . . . Impact . | . . . . . . Kinetic . | . . . . . . Secondary . | . . . . . . Self-Inflicted Damage 89 | . . . . . 89 Shots 4 | . . . . . 4 Rammed 2 | . . . . . 2 Targets Rammed 2 | . . . . . 2 Kicked . | . . . . . . Crushed . | . . . . . . Highest Temperature 140 | . 90 4 6 78 140 Average Temperature 46 | . 43 2 6 32 57 Received Heat Transfer 711 | . . 39 108 198 366 Siege Activations . | . . . . . . Robots Corrupted . | . . . . . . Combat Hostiles . | . . . . . . Parts Fried . | . . . . . . Impact Corruptions . | . . . . . . Robots Melted . | . . . . . . Combat Hostiles . | . . . . . . Parts Melted 1 | . . . . . 1 Heat Transferred 481 | . 111 . . 148 222 Parts Sabotaged . | . . . . . . Parts Stolen . | . . . . . . Parts Stripped . | . . . . . . Power Chain Reactions . | . . . . . . Alert | -11 -10 -10 -9 -9 -9 ------- Run | Yrd Mat Min Mat Sto Gar Peak Influence 1315 | . 27 132 242 278 1315 Initial 102 | . . 10 51 53 102 Average 354 | . 5 106 121 158 661 Maximum Alert Level 4 | . . . 1 1 4 Low Security (%) 54 | 100 100 100 83 77 13 Level 1 14 | . . . 16 22 18 Level 2 7 | . . . . . 16 Level 3 17 | . . . . . 37 Level 4 6 | . . . . . 13 Level 5 . | . . . . . . High Security . | . . . . . . Max Security . | . . . . . . Squads Dispatched 1 | . . . . 1 . Investigation 1 | . . . . 1 . Extermination . | . . . . . . Reinforcement . | . . . . . . Assault . | . . . . . . Garrison . | . . . . . . Intercept . | . . . . . . Searches Triggered . | . . . . . . Construction Impeded . | . . . . . . Haulers Reinforced . | . . . . . . Active Scanning Responses . | . . . . . . Cargo Convoy Interrupts . | . . . . . . Stealth | -11 -10 -10 -9 -9 -9 --------- Run | Yrd Mat Min Mat Sto Gar Distress Signals 4 | . 1 . 2 1 . Communications Jammed . | . . . . . . Distress Signals . | . . . . . . Times Spotted 58 | . 3 6 11 9 29 Peak Tracking Total 5 | . 1 3 4 5 5 Tactical Retreats 4 | . . . 1 . 3 Traps | -11 -10 -10 -9 -9 -9 ------- Run | Yrd Mat Min Mat Sto Gar Traps Triggered 1 | . . . . . 1 Indirectly . | . . . . . . Trap Hack Attempts . | . . . . . . Triggered . | . . . . . . Disarmed . | . . . . . . Reprogrammed . | . . . . . . Reused . | . . . . . . Traps Extracted . | . . . . . . Installed . | . . . . . . Triggered . | . . . . . . Machines | -11 -10 -10 -9 -9 -9 ---------- Run | Yrd Mat Min Mat Sto Gar Machines Disabled 16 | . . . . 1 15 Max in Single Turn 3 | . . . . 1 3 Garrison Relay 4 | . . . . . 4 Phase Generator 1 | . . . . . 1 Machines Repaired . | . . . . . . Machines Dismantled . | . . . . . . Machines Sabotaged . | . . . . . . Overloaded Fab Kills . | . . . . . . Hacking | -11 -10 -10 -9 -9 -9 --------- Run | Yrd Mat Min Mat Sto Gar Machines Accessed 7 | . 2 . . 3 2 Terminals 6 | . 2 . . 2 2 Fabricators . | . . . . . . Repair Stations . | . . . . . . Recycling Units . | . . . . . . Scanalyzers . | . . . . . . Garrison Access 1 | . . . . 1 . Total Hacks 16 | . 5 . . 7 4 Successful 6 | . 3 . . 2 1 Failed 10 | . 2 . . 5 3 Catastrophic 4 | . . . . 1 3 Database Lockouts . | . . . . . . Manual 4 | . 4 . . . . Terminals 14 | . 5 . . 5 4 Fabricators . | . . . . . . Repair Stations . | . . . . . . Recycling Units . | . . . . . . Scanalyzers . | . . . . . . Garrison Access 2 | . . . . 2 . Terminal Hacks 3 | . 1 . . 1 1 Open Door 1 | . . . . . 1 Unreport Threat 1 | . . . . 1 . Locate Traps 1 | . 1 . . . . Fabricator Hacks . | . . . . . . Repair Station Hacks . | . . . . . . Recycling Unit Hacks . | . . . . . . Scanalyzer . | . . . . . . Garrison Access Hacks 1 | . . . . 1 . Unlock Access 1 | . . . . 1 . Unauthorized Hacks 2 | . 2 . . . . Terminals 2 | . 2 . . . . Track 1 | . 1 . . . . Botnet 1 | . 1 . . . . Fabricators . | . . . . . . Repair Stations . | . . . . . . Recycling Units . | . . . . . . Scanalyzers . | . . . . . . Garrison Access . | . . . . . . Data Cores Recovered 1 | . . . 1 . . Used . | . . . . . . Hacking Detections 6 | . 2 . . 2 2 Full Trace Events 3 | . . . . 1 2 Feedback Events . | . . . . . . Feedback Blocked . | . . . . . . Robot Schematics Acquired . | . . . . . . Robots Built . | . . . . . . Authchips . | . . . . . . Time . | . . . . . . Total Robot Build Rating . | . . . . . . Part Schematics Acquired . | . . . . . . Parts Built . | . . . . . . Authchips . | . . . . . . Time . | . . . . . . Total Part Build Rating . | . . . . . . Parts Repaired . | . . . . . . Time . | . . . . . . Parts Recycled . | . . . . . . Recycled Matter . | . . . . . . Retrieved Matter . | . . . . . . Retrieved Components . | . . . . . . Parts Scanalyzed . | . . . . . . Part Schematics Acquired . | . . . . . . Parts Damaged . | . . . . . . Bothacking | -11 -10 -10 -9 -9 -9 ------------ Run | Yrd Mat Min Mat Sto Gar Used RIF Installer . | . . . . . . Robots Hacked . | . . . . . . Non-combat . | . . . . . . Combat . | . . . . . . Robot Hacks Applied . | . . . . . . Relay Couplers Released 17 | . . . . . 17 Machine Destruction 17 | . . . . . 17 Fabnet Peak Effective % . | . . . . . . Robots Rewired . | . . . . . . Allies Hacked . | . . . . . . Hacks Repelled . | . . . . . . Allies | -11 -10 -10 -9 -9 -9 -------- Run | Yrd Mat Min Mat Sto Gar Total Allies 1 | . . . . . 1 Largest Group 1 | . . . . . 1 Highest-Rated Group 31 | . . . . . 31 Highest-Rated Ally 31 | . . . . . 31 Total Orders . | . . . . . . Ally Attacks 2 | . . . . . 2 Total Damage 26 | . . . . . 26 Kills . | . . . . . . Allies Corrupted . | . . . . . . Allies Melted . | . . . . . . Intel | -11 -10 -10 -9 -9 -9 ------- Run | Yrd Mat Min Mat Sto Gar Robot Analysis Total . | . . . . . . Derelict Logs Recovered . | . . . . . . Drone Launches . | . . . . . . Drone Recoveries . | . . . . . . Exploration | -11 -10 -10 -9 -9 -9 ------------- Run | Yrd Mat Min Mat Sto Gar Turns Passed 3041 | 52 364 304 539 398 1384 Spaces Moved 1449 | 38 196 162 247 187 619 Core 4 | 4 . . . . . Treads 1185 | . . 132 247 187 619 Legs 260 | 34 196 30 . . . Wheels . | . . . . . . Hover . | . . . . . . Flight . | . . . . . . Fastest Speed 50 | 50 120 160 160 160 160 Average Speed 161 | 112 171 165 160 160 160 Slowest Speed 240 | 120 190 190 160 160 240 Overloaded Moves . | . . . . . . Propulsion Burnouts . | . . . . . . Robots Hopped . | . . . . . . Cave-ins Triggered . | . . . . . . Exploration Rate (%) 36 | 3 40 36 25 37 77 Regions Visited 5 Branch Regions 2 Pre-discovered Areas . | . . . . . . Known Exits Taken 1 | . . . . 1 . Unknown Exits Taken 4 | 1 1 1 1 . . Scrap Searched 1 | . . 1 . . . Spaces Dug 12 | . . . . . 12 Terrain Destroyed 135 | . . 47 . . 88 Melee 5 | . . . . . 5 Projectile . | . . . . . . AOE 130 | . . 47 . . 83 Terrain Rammed . | . . . . . . Walls Destroyed . | . . . . . . Machines Disabled . | . . . . . . Actions | -11 -10 -10 -9 -9 -9 --------- Run | Yrd Mat Min Mat Sto Gar Total 1858 | 44 212 196 339 241 826 Wait 136 | . . . 46 14 76 Move 1444 | 37 195 161 246 187 618 Hop . | . . . . . . Pick Up 27 | 1 7 11 3 1 4 Fast Attach 14 | 6 1 1 4 . 2 Attach 9 | . . 4 . . 5 Detach 7 | . 1 4 2 . . Swap 21 | . . 3 3 10 5 Drop 24 | . 1 7 6 5 5 Fire 30 | . 7 5 2 1 15 Melee 144 | . . . 27 23 94 Ram . | . . . . . . Kick . | . . . . . . Crush 2 | . . . . . 2 Escape Stasis . | . . . . . . Rewire . | . . . . . . Trap . | . . . . . . Miscellaneous . | . . . . . . Route ------- -11/Scrapyard -10/Materials -10/Mines -9/Materials (discovered 2 exits: [*Mat] / *Sto) -9/Storage -9/Garrison (discovered 2 exits: [*Rec x2]) History --------- Turn | Location | Event 2 | -11/Scrapyard | Met Revision 17 33 | -11/Scrapyard | Discovered new exit (range 15) 53 | -11/Scrapyard | Entered Materials 181 | -10/Materials | Discovered new exit (range 5) 311 | -10/Materials | Build established: Mutant 417 | -10/Materials | Entered Mines 423 | -10/Mines | Met a Derelict bent on vengeance 469 | -10/Mines | Joined a pair of Derelicts in attacking an 0b10 outpost 708 | -10/Mines | Discovered new exit (range 7) 721 | -10/Mines | Entered Materials 721 | -9/Materials | Evolved 2 slots: Propulsion x1, Utility x1 1101 | -9/Materials | Discovered new exit (range 4) 1207 | -9/Materials | Build established: Scavenger-Mutant 1253 | -9/Materials | Discovered new exit (range 4) 1260 | -9/Materials | Entered Storage 1658 | -9/Storage | Identified exit to Garrison 1658 | -9/Storage | Entered Garrison 1677 | -9/Garrison | Build established: Mutant 1840 | -9/Garrison | Triggered checkpoint 1868 | -9/Garrison | Core integrity fell below 50% 1915 | -9/Garrison | Lost 3 parts (2n1w) 1970 | -9/Garrison | Garrison Relay disabled 2092 | -9/Garrison | Triggered checkpoint 2213 | -9/Garrison | Discovered new exit (range 13) 2288 | -9/Garrison | Triggered checkpoint 2335 | -9/Garrison | Garrison Relay disabled 2347 | -9/Garrison | Garrison Relay disabled 2611 | -9/Garrison | Phase Generator disabled 2657 | -9/Garrison | Attempted to access garrison exit controls, blocked by remote lockdown 2725 | -9/Garrison | Triggered checkpoint 2840 | -9/Garrison | Discovered new exit (range 12) 2893 | -9/Garrison | Build established: Scavenger-Mutant 2937 | -9/Garrison | Core integrity fell below 20% 2947 | -9/Garrison | Triggered checkpoint 2956 | -9/Garrison | Garrison Relay disabled 2979 | -9/Garrison | Rescued a captive Derelict 3027 | -9/Garrison | P-60 Hacker assimilated allied YU-N2I(g) 3042 | -9/Garrison | Destroyed by YU-N2I(g) with Beamcaster Last Messages --------------- Sealed Heavy Doors opened. 02978_ ALERT: Suspicious activity at Terminal G002. Transmitting hostile system tracking data. 02979_ YU-N2I(g): "WARLORD FOREVER!" Door Terminal activated. 02989_ Garrison Relay collapses. 02994_ Acquired 10 matter. 03024_ P-60 Hacker springs to life. 03024_ P-60 Hacker fails to hack YU-N2I(g). 03026_ Lgt. Treads destroyed. 03026_ Chain reaction triggered in Lgt. Angular Momentum Engine. 03026_ Ion Engine destroyed. 03027_ P-60 Hacker hacks YU-N2I(g), assimilated. 03030_ P-60 Hacker destroyed. 03034_ YU-N2I(g) reactivates. 03034_ Lgt. Treads destroyed. 03035_ P-60 Hacker resets YU-N2I(g), system corruption cleaned. 03039_ Acquired 10 matter. 03040_ Beamcaster destroyed. 03040_ Slammed into P-60 Hacker. Map ----- +----------------------------------------------------+ | ????????#"# ! %[ #???????????? | | ????????# ! ##! ##???????????? | | ????????#!!! ### #????????????? | | ????????# ! #?###????????????? | | ????????# # #????????????????? | | ????????### ###??????????????? | | ??????????# =####???????????# | | ??????????# %=%=#???????????# | | ??????????# [##=#???????????? | | ??????????# ####[#???????????? | | ??????????# #??# #???????????? | | ??????????# #### ############# | | ??????????# | | ??????????# | | ??????????# ######## < ####### | | ??????????# #??????# #?????? | | ??????????# #??????#####?????? | | ??????????# #??????????####### | | ????####### #????# | | ?????!+!!## #??????????####### | | ??????# ;# #????# ##????????? | | ???# ## ;; ## #?????? | | ???# g #?????? | | ???#%##=!;; ## #?????? | | ???#!p#%[## #??? " ####### | | ???#|!@!!## #?????"" ## # # | | ???######## #??????? ???## | | ??????????# #???????????# | | ??????????# #???????????# # | | ??????????# #???????????# # | | ??????????# #???????????###### | | ??????????# #????????????????? | | ??????????# #???????# ######## | | ??????????? ????? | | ??????????? ????? | | ???????????###????????######### | | ??????????????????????????????? | | ??????????????????????????????? | | ??????????????????????????????? | | ??????????????????????????????? | | ??????????????????????????????? | | ??????????????????????????????? | | ??????????????????????????????? | | ??????????????????????????????? | | ??????????????????????????????? | | ??????????????????????????????? | | ??????????????????????????????? | | ??????????????????????????????? | | ??????????????????????????????? | | ??????????????????????????????? | +----------------------------------------------------+ Best States ------------- Heat Dissipation 28 Energy Generation 12 Energy Capacity 265 Matter Stores 300 Matter Capacity 300 Sight Range 16 Terrain Scan Density 10 Evasion (%) 55 Targeting Accuracy 16 Recoil Reduction 3 Item Schematics ----------------- None Robot Schematics ------------------ None Fabricated ------------ Nothing Alien Tech Used ----------------- None Achievements -------------- None Challenges ------------ None Game ------ Seed ArmageddonDrainedNanovents Manual? 0 Play Time 00:25:08 Cumulative 615.9 hours Start 2024.03.12 @ 17:19:50 End 2024.03.12 @ 17:55:52 Sessions 1 Manual Loads 0 Difficulty Rogue Special Mode None Game No. 392 Rogue 392 Adventurer 0 Explorer 0 Win Type - Total 38 Types 25/1/6/6/0/0/0/0/0 Lore% 80 Gallery% 85 Achievement% 78 Wizard Run 0 Options --------- Layout 0 ASCII 1 Keyboard 1 Movement Numpad Keybinds 0 Fullscreen 1 Font 36/SmallcapsGlow++ Map View 76x50 Zoom Use 0% Tactical HUD 1 Map Filters NONE Filters NONE Steam 1 RUN: be617e31-115b-4f9b-852b-c94a4ed20503